fUST/lending_fUST_20251012
["ID","MTS","AMOUNT","RATE_DAILY","PERIOD"]
[390987393,1760271821513,-10000.01,0.00021,2]
[390987394,1760271821638,-10000.01,0.00021,2]
[390987395,1760271821754,-10000.01,0.00021,2]
[390987396,1760271821869,-10000.01,0.00021,2]
[390987397,1760271821994,-10000.01,0.00021,2]
[390987398,1760271822174,-10000.01,0.00021,2]
[390987399,1760271822285,-10000.01,0.00021,2]
[390987400,1760271822392,-10000.01,0.00021,2]
[390987401,1760271822551,-10000.01,0.00021,2]
[390987402,1760271822779,-10000.01,0.00021,2]
[390987403,1760271822909,-10000.01,0.00021,2]
[390987404,1760271823026,-10000.01,0.00021,2]
[390987405,1760271823141,-10000.01,0.00021,2]
[390987406,1760271823250,-10000.01,0.00021,2]
[390987407,1760271823357,-10000.01,0.00021,2]
[390987408,1760271823509,-10000.01,0.00021,2]
[390987409,1760271826197,300.0,0.00018,2]
[390987410,1760271837374,300.0,0.00018,2]
[390987411,1760271848497,300.0,0.00018,2]
[390987412,1760271850623,393.34,0.00017999,2]
[390987413,1760271853428,-215.76933151,0.00018857,2]
[390987414,1760271855460,-204.12336471,0.00018857,2]
[390987415,1760271859872,-186.25992739,0.00018857,2]
[390987416,1760271859899,300.0,0.00018,2]
[390987417,1760271862411,-180.52737639,0.00018857,2]
[390987418,1760271862434,-65.49975312,0.00019714,2]
[390987419,1760271867629,-529.21761542,0.00019714,2]
[390987420,1760271870467,2410.14,0.00018,2]
[390987421,1760271870717,300.0,0.00018,2]
[390987422,1760271871391,-300.16631947,0.00019714,2]
[390987423,1760271881929,300.0,0.00018,2]
[390987424,1760271882610,-301.98336284,0.00019517,2]
[390987425,1760271884599,-2296.98389254,0.00019517,2]
[390987426,1760271885450,-184.28583924,0.00019714,2]
[390987427,1760271886582,-100.85047275,0.00019714,2]
[390987428,1760271887330,-251.03957046,0.00020571,2]
[390987429,1760271889242,-330.76143456,0.00020571,2]
[390987430,1760271890901,-185.347184,0.00020571,2]
[390987431,1760271894418,-357.02762367,0.00020571,2]
[390987432,1760271898709,-159.28547763,0.00020571,2]
[390987433,1760271900141,-166.84448562,0.00020527,2]
[390987434,1760271900164,-133.15551438,0.00020571,2]
[390987435,1760271901156,-156.7431953,0.00020571,2]
[390987436,1760271902773,-403.84380753,0.00020627,2]
[390987437,1760271903080,-335.3355705,0.00020835,2]
[390987438,1760271904494,-277.22444406,0.00020835,2]
[390987439,1760271905869,-344.09062189,0.00020835,2]
[390987440,1760271908917,-245.87392014,0.00020835,2]
[390987441,1760271910401,659.66356968,0.00019714,2]
[390987442,1760271911556,-305.8492098,0.00020835,2]
[390987443,1760271914749,5000.0,0.00020627,2]
[390987444,1760271916477,-236.28184371,0.00020835,2]
[390987445,1760271917404,-3255.3443899,0.00020835,2]
[390987446,1760271917930,-295.40227718,0.00021,2]
[390987447,1760271918790,-4340.34643032,0.00021,2]
[390987448,1760271919017,-10000.01,0.00021,2]
[390987449,1760271919125,-10000.01,0.00021,2]
[390987450,1760271919168,300.0,0.000197,2]
[390987451,1760271919441,-9700.01,0.00021,2]
[390987452,1760271919559,-10000.01,0.00021,2]
[390987453,1760271919818,-10000.01,0.00021,2]
[390987454,1760271919966,-10000.01,0.00021,2]
[390987455,1760271920184,-10000.01,0.00021,2]
[390987456,1760271920297,-10000.01,0.00021,2]
[390987457,1760271920496,-10000.01,0.00021,2]
[390987458,1760271920604,-10000.01,0.00021,2]
[390987459,1760271920809,-10000.01,0.00021,2]
[390987460,1760271920936,-10000.01,0.00021,2]
[390987461,1760271921113,-10000.01,0.00021,2]
[390987462,1760271921278,-10000.01,0.00021,2]
[390987463,1760271921458,-10000.01,0.00021,2]
[390987464,1760271923931,-156.76143765,0.00021,2]
[390987465,1760271925871,-263.35740283,0.00021,2]
[390987466,1760271927345,-166.95068233,0.00021,2]
[390987467,1760271930492,5000.0,0.00020835,2]
[390987468,1760271930595,300.0,0.000197,2]
[390987470,1760271934407,368.77,0.00017982,2]
[390987471,1760271934907,737.55,0.00018839,2]
[390987472,1760271935332,1106.32,0.00019695,2]
[390987473,1760271935763,1475.1,0.00020551,2]
[390987474,1760271938507,1969.75001509,0.00020835,2]
[390987477,1760271957662,1226.01,0.00030272,60]
[390987478,1760271957914,1226.01,0.00030272,60]
[390987479,1760271958158,1226.01,0.00030272,60]
[390987480,1760271958425,1226.01,0.00030272,60]
[390987481,1760271958647,1226.01,0.00030272,60]
[390987482,1760271958964,1226.01,0.00030272,60]
[390987483,1760271959196,1226.01,0.00030272,60]
[390987484,1760271959449,1226.01,0.00030272,60]
[390987485,1760271959680,1226.01,0.00030272,60]
[390987486,1760271959913,1226.01,0.00030272,60]
[390987487,1760271960150,1226.01,0.00030272,60]
[390987488,1760271960368,1226.01,0.00030272,60]
[390987489,1760271960595,1226.01,0.00030272,60]
[390987490,1760271960843,1226.01,0.00030272,60]
[390987491,1760271961099,1226.01,0.00030272,60]
[390987492,1760271961352,1226.01,0.00030272,60]
[390987493,1760271961585,1226.01,0.00030272,60]
[390987494,1760271961843,1226.01,0.00030272,60]
[390987495,1760271962139,1226.01,0.00030272,60]
[390987496,1760271962399,1226.01,0.00030272,60]
[390987497,1760271962630,1226.01,0.00030272,60]
[390987498,1760271962877,1226.01,0.00030272,60]
[390987499,1760271963110,1226.01,0.00030272,60]
[390987500,1760271963331,1226.07259964,0.00030272,60]
[390987503,1760272008700,-160.0,0.0002,3]
[390987504,1760272009697,-5000.0,0.00020203,2]
[390987505,1760272013698,0.01,0.00020203,2]
[390987506,1760272013722,4999.99,0.00020203,2]
[390987507,1760272014386,440.7,0.00017971,2]
[390987508,1760272014841,881.4,0.00018826,2]
[390987509,1760272015271,1322.1,0.00019682,2]
[390987510,1760272019603,-277.19277018,0.00020407,2]
[390987511,1760272023933,-235.26310056,0.00020407,2]
[390987512,1760272025368,-154.3911794,0.00020407,2]
[390987514,1760272027893,-299.99999997,0.00020407,2]
[390987515,1760272029333,-286.72368673,0.00020407,2]
[390987517,1760272030777,-220.69683957,0.00020407,2]
[390987518,1760272031540,-3525.73242359,0.00020407,2]
[390987519,1760272033046,-1762.8,0.00020538,2]
[390987520,1760272035839,5000.0,0.00020407,2]
[390987522,1760272038452,-210.5747819,0.00020613,2]
[390987523,1760272038473,-13.86964906,0.00020938,2]
[390987524,1760272040436,-251.50463339,0.00020938,2]
[390987525,1760272042976,-34.62571755,0.00020938,2]
[390987526,1760272042998,-296.50965992,0.00020939,2]
[390987527,1760272045960,-189.1049393,0.00020939,2]
[390987529,1760272047378,-159.77093454,0.00020939,2]
[390987530,1760272051034,-4354.61446624,0.00020939,2]
[390987531,1760272051762,1290.78106752,0.00020538,2]
[390987532,1760272051784,3709.21893248,0.00020538,2]
[390987533,1760272051842,-273.25091656,0.00021,2]
[390987534,1760272053227,-168.0,0.00021,2]
[390987536,1760272058428,-1398.33998491,0.00021,2]
[390987537,1760272058723,-10000.01,0.00021,2]
[390987538,1760272059068,-10000.01,0.00021,2]
[390987539,1760272059360,-10000.01,0.00021,2]
[390987540,1760272059631,-10000.01,0.00021,2]
[390987541,1760272059794,2208.2283846,0.00020939,2]
[390987542,1760272059919,-7791.7816154,0.00021,2]
[390987543,1760272060253,-10000.01,0.00021,2]
[390987544,1760272060449,-533.41856438,0.00021,2]
[390987545,1760272063423,-455.9950664,0.00021,2]
[390987546,1760272065706,163.0,0.0002074,3]
[390987547,1760272066986,9837.01,0.00018,2]
[390987548,1760272067008,10000.01,0.00018,2]
[390987549,1760272067032,10000.01,0.00018,2]
[390987550,1760272067058,10000.01,0.00018,2]
[390987551,1760272067087,10000.01,0.00018,2]
[390987552,1760272067116,10000.01,0.00018,2]
[390987553,1760272067141,10000.01,0.00018,2]
[390987554,1760272067169,10000.01,0.00018,2]
[390987555,1760272067195,55238.88158915,0.00018,2]
[390987556,1760272067353,-173.79194429,0.00021,2]
[390987557,1760272079201,-5000.0,0.0002073,2]
[390987560,1760272085025,0.01,0.0002073,2]
[390987561,1760272085049,4999.99,0.0002073,2]
[390987562,1760272093823,5000.02,0.00018,2]
[390987563,1760272093850,13.979999,0.00018,2]
[390987564,1760272093882,-357.02762367,0.00020939,2]
[390987565,1760272094464,-4642.97237633,0.00020939,2]
[390987566,1760272094674,460.67,0.00017973,2]
[390987567,1760272095083,253.39524734,0.00018829,2]
[390987568,1760272095107,667.93475266,0.00018829,2]
[390987569,1760272095306,-259.46948852,0.00021,2]
[390987570,1760272095529,1382.0,0.00019685,2]
[390987572,1760272095957,1842.66,0.0002054,2]
[390987573,1760272099795,-279.4489178,0.00021,2]
[390987574,1760272100532,2111.18221565,0.000176,2]
[390987575,1760272100696,3996.23303169,0.00020939,2]
[390987576,1760272100719,1003.76696831,0.00020939,2]
[390987577,1760272101721,-205.04921337,0.00021,2]
[390987578,1760272101918,300.0,0.000204,2]
[390987579,1760272102107,-7968.18778535,0.00021,2]
[390987580,1760272102398,-10000.01,0.00021,2]
[390987581,1760272102676,-10000.01,0.00021,2]
[390987583,1760272102932,-10000.01,0.00021,2]
[390987584,1760272103255,-10000.01,0.00021,2]
[390987585,1760272103551,-10000.01,0.00021,2]
[390987586,1760272104169,-239.69440039,0.00021,2]
[390987587,1760272109234,30283.62690168,0.00017,2]
[390987588,1760272111457,3148.72150917,0.00015,2]
[390987589,1760272111479,25840.1784072,0.00015,2]
[390987592,1760272114852,-3240.5306512,0.00018,2]
[390987593,1760272114880,-305.63068951,0.0001971,2]
[390987594,1760272114928,-2907.68731858,0.0002,20]
[390987595,1760272115144,-10000.01,0.0002,20]
[390987596,1760272116401,-10000.01,0.0002,20]
[390987597,1760272116836,-213.26609028,0.00016,2]
[390987598,1760272116865,-3547.59997233,0.0002,20]
[390987599,1760272116901,-2478.27787478,0.0002,20]
[390987600,1760272117088,-5000.0,0.000198,2]
[390987601,1760272117121,-0.01,0.0002,7]
[390987602,1760272118988,-252.10457264,0.0002,7]
[390987603,1760272119027,-9495.80085472,0.0002,2]
[390987604,1760272119421,-1511.21720057,0.0002,2]
[390987605,1760272119883,525.46386555,0.0001,2]
[390987606,1760272120492,260.74011627,0.00015,2]
[390987607,1760272124958,-367.79421095,0.000203,2]
[390987608,1760272125036,5000.0,0.0002,2]
[390987609,1760272127419,-265.21950802,0.000203,2]
[390987611,1760272130935,-177.18458148,0.000203,2]
[390987612,1760272132209,-2299.80175156,0.000203,2]
[390987613,1760272132238,-166.95068233,0.000203,2]
[390987614,1760272132874,-287.12728628,0.000204,2]
[390987615,1760272134070,-12.87271372,0.000204,2]
[390987616,1760272134099,-300.0,0.000204,2]
[390987617,1760272136310,300.0,0.000204,2]
[390987618,1760272141522,-268.35142128,0.00020632,2]
[390987619,1760272142854,-268.38059175,0.00020632,2]
[390987620,1760272144423,-180.54889743,0.00020632,2]
[390987621,1760272146171,-239.16009592,0.00020632,2]
[390987622,1760272148219,-174.29460539,0.00020632,2]
[390987623,1760272148294,300.0,0.000204,2]
[390987624,1760272148424,-3869.26438823,0.00020632,2]
[390987625,1760272148691,2261.48122354,0.000204,2]
[390987626,1760272148717,2738.51877646,0.000204,2]
[390987627,1760272158794,300.0,0.000204,2]
[390987628,1760272158910,160.0,0.000204,2]
[390987629,1760272160323,300.0,0.000206,2]
[390987630,1760272161990,-3893.478809,0.0002084,2]
[390987631,1760272163918,5000.0,0.00020632,2]
[390987632,1760272170998,300.0,0.000204,2]
[390987633,1760272171259,-2553.81601818,0.00021,2]
[390987634,1760272171535,-10000.01,0.00021,2]
[390987635,1760272171578,300.0,0.000206,2]
[390987636,1760272171840,-9700.01,0.00021,2]
[390987637,1760272172061,4400.01,0.0002084,2]
[390987638,1760272172083,599.99,0.0002084,2]
[390987639,1760272172199,-5000.01,0.00021,2]
[390987640,1760272172394,-10000.01,0.00021,2]
[390987641,1760272172704,-10000.01,0.00021,2]
[390987642,1760272173204,-10000.01,0.00021,2]
[390987644,1760272178555,825.0,0.000204,2]
[390987645,1760272178827,-218.72896481,0.00020951,2]
[390987646,1760272178894,-8737.55207038,0.00021,2]
[390987647,1760272179355,-10000.01,0.00021,2]
[390987648,1760272179685,-10000.01,0.00021,2]
[390987649,1760272179991,-10000.01,0.00021,2]
[390987650,1760272180804,487.0,0.00017976,2]
[390987651,1760272180836,5000.0,0.0002084,2]
[390987652,1760272181233,949.86487783,0.00018833,2]
[390987653,1760272182368,160.0,0.000273,120]
[390987654,1760272188821,160.0,0.000273,120]
[390987655,1760272198255,-5000.0,0.00018459,2]
[390987656,1760272198500,-319.01124997,0.00018645,2]
[390987657,1760272198549,-4680.98875003,0.00018645,2]
[390987658,1760272199777,159.87373342,0.000273,120]
[390987659,1760272201337,-300.0,0.00018832,2]
[390987660,1760272201366,-24.14512217,0.00018833,2]
[390987661,1760272202057,300.0,0.00018832,2]
[390987662,1760272202099,300.0,0.00018832,2]
[390987663,1760272202138,300.0,0.00018832,2]
[390987665,1760272202227,1200.0,0.00018644,2]
[390987666,1760272205884,-1461.01,0.00019689,2]
[390987667,1760272205912,-200.0,0.00019689,2]
[390987668,1760272205943,-1046.9865949,0.00020306,2]
[390987669,1760272205981,-300.0,0.000204,2]
[390987670,1760272206012,-300.0,0.000204,2]
[390987671,1760272206045,-300.0,0.000204,2]
[390987672,1760272206077,-1104.0168102,0.00020428,2]
[390987673,1760272208089,-5000.0,0.00019492,2]
[390987674,1760272218012,-5000.0,0.00020224,10]
[390987684,1760272232382,-585.8500001,0.00020022,10]
[390987686,1760272232394,-2187.66353049,0.00020022,10]
[390987707,1760272240835,-3e-08,0.00019822,10]
[390987708,1760272240876,-4999.99999997,0.00019822,10]
[390987709,1760272240924,-2226.48646941,0.00020022,10]
[390987710,1760272240956,-547.03706118,0.00020224,10]
[390987717,1760272242923,-4452.96293882,0.00020224,10]
[390987718,1760272242953,-394.37840574,0.00020328,2]
[390987719,1760272243195,-575.9831898,0.00020428,2]
[390987720,1760272243224,-420.0,0.0002053,2]
[390987721,1760272243255,-420.0,0.0002053,2]
[390987722,1760272243288,-420.0,0.0002053,2]
[390987723,1760272243319,-420.0,0.0002053,2]
[390987724,1760272243349,-1948.01,0.00020545,2]
[390987727,1760272246127,-300.0,0.000206,2]
[390987728,1760272246136,-202.0,0.000206,2]
[390987729,1760272246241,-98.0,0.000206,2]
[390987730,1760272246250,-10606.82891118,0.00021,2]
[390987731,1760272246261,-8617.38285022,0.00021,2]
[390987732,1760272246271,-1909.06378178,0.00021,2]
[390987734,1760272255901,902.69320791,0.00020571,2]
[390987735,1760272275399,-198.05981878,0.00017983,2]
[390987815,1760272315528,500.0,0.00030266,60]
[390987816,1760272315700,500.0,0.00030266,60]
[390987817,1760272315961,500.0,0.00030266,60]
[390987818,1760272316232,500.0,0.00030266,60]
[390987819,1760272316738,500.0,0.00030266,60]
[390987820,1760272316969,500.0,0.00030266,60]
[390987821,1760272317243,500.0,0.00030266,60]
[390987822,1760272317470,500.0,0.00030266,60]
[390987823,1760272317735,499.0,0.00030266,60]
[390987917,1760272370627,500.0,0.00030266,60]
[390987919,1760272423834,-151.0,0.00017,2]
[390987922,1760272453868,-389.98305648,0.00017424,10]
[390987924,1760272459173,-174.73764507,0.0001725,10]
[390987925,1760272462811,547.39,0.00030264,60]
[390987927,1760272474146,564.72070155,0.00017,10]
[390987928,1760272549178,398.09,0.00030264,60]
[390987929,1760272570651,500.0,0.00030264,60]
[390987930,1760272572557,500.0,0.00030264,60]
[390987931,1760272583821,500.0,0.00030264,60]
[390987934,1760272594208,500.0,0.00030264,60]
[390987935,1760272597755,500.0,0.00030264,60]
[390987936,1760272598282,1329.98,0.000157,2]
[390987938,1760272604396,500.0,0.00030264,60]
[390987940,1760272622120,500.0,0.00030264,60]
[390987941,1760272622541,500.0,0.00030264,60]
[390987943,1760272638967,5000.0,0.00017,10]
[390987946,1760272654868,5000.0,0.00017,10]
[390987948,1760272663552,5000.0,0.00017,10]
[390987949,1760272682338,468.96639749,0.00030264,60]
[390987950,1760272687044,5000.0,0.00017,10]
[390987951,1760272739106,500.0,0.0003027,60]
[390987952,1760272741085,500.0,0.0003027,60]
[390987954,1760272871029,500.0,0.0003027,60]
[390987955,1760272871263,500.0,0.0003027,60]
[390987956,1760272871530,300.0,0.0003027,60]
[390987957,1760272874777,5000.0,0.00017,10]
[390987958,1760272898379,5000.0,0.00017,10]
[390987959,1760272903502,-209.6088089,0.00016335,2]
[390987960,1760272904953,-262.16704335,0.00016335,2]
[390987961,1760272906722,5000.0,0.00017,10]
[390987962,1760272907605,-345.51035046,0.00016335,2]
[390987963,1760272910470,-242.24576017,0.00016335,2]
[390987964,1760272916091,-418.2827372,0.00016172,2]
[390987965,1760272931220,5000.0,0.000157,2]
[390987966,1760272931838,-331.9245242,0.0001601,2]
[390987967,1760272948996,-171.16813973,0.0001601,2]
[390987968,1760272951311,-310.4196193,0.0001601,2]
[390987969,1760272953323,5000.0,0.000157,2]
[390987970,1760272955455,-285.72139778,0.0001601,2]
[390987971,1760272975655,5000.0,0.000157,2]
[390987973,1760272997740,5000.0,0.000157,2]
[390987974,1760273011976,500.0,0.00030268,60]
[390987975,1760273013877,500.0,0.00030268,60]
[390987976,1760273021588,5000.0,0.000157,2]
[390987977,1760273029037,1002.701972,0.00013699,2]
[390987978,1760273043919,5000.0,0.000157,2]
[390987979,1760273046296,500.0,0.00030268,60]
[390987982,1760273066251,5000.0,0.000157,2]
[390987983,1760273088542,5000.0,0.000157,2]
[390987984,1760273097404,1949.14083182,0.000157,2]
[390987985,1760273107155,5000.0,0.000157,2]
[390987986,1760273112090,1892.0,0.00030268,60]
[390987987,1760273115192,5000.0,0.000157,2]
[390987988,1760273130403,500.0,0.00030268,60]
[390987989,1760273130691,5000.0,0.000157,2]
[390987990,1760273138963,5000.0,0.000157,2]
[390987992,1760273154454,5000.0,0.000157,2]
[390987993,1760273162596,5000.0,0.000157,2]
[390987996,1760273178951,5000.0,0.000157,2]
[390987997,1760273186941,5000.0,0.000157,2]
[390987998,1760273187620,-165.04515383,0.00015769,2]
[390987999,1760273187643,-164.13438117,0.00015771,2]
[390988000,1760273202605,5000.0,0.000157,2]
[390988001,1760273210788,5000.0,0.000157,2]
[390988004,1760273226416,5000.0,0.000157,2]
[390988005,1760273229071,530.8426417,0.00030268,60]
[390988006,1760273234938,5000.0,0.000157,2]
[390988007,1760273250538,5000.0,0.000157,2]
[390988009,1760273258740,5000.0,0.000157,2]
[390988010,1760273274402,5000.0,0.000157,2]
[390988012,1760273277021,416.62800029,0.00030268,60]
[390988013,1760273282464,5000.0,0.000157,2]
[390988015,1760273298193,5000.0,0.000157,2]
[390988016,1760273306346,5000.0,0.000157,2]
[390988017,1760273322121,5000.0,0.000157,2]
[390988018,1760273328916,452.3,0.0002739,120]
[390988019,1760273330018,5000.0,0.000157,2]
[390988021,1760273345583,5000.0,0.000157,2]
[390988022,1760273353523,5000.0,0.000157,2]
[390988023,1760273367178,-20.502097,0.00015771,2]
[390988024,1760273367200,-300.0,0.00015868,2]
[390988025,1760273367219,-500.0,0.00015869,2]
[390988026,1760273367243,-500.0,0.00015869,2]
[390988027,1760273367264,-500.0,0.00015869,2]
[390988028,1760273367284,-500.0,0.00015869,2]
[390988029,1760273367304,-500.0,0.00015869,2]
[390988030,1760273367325,-500.0,0.00015869,2]
[390988031,1760273367344,-500.0,0.00015869,2]
[390988032,1760273367363,-500.0,0.00015869,2]
[390988033,1760273367383,-303.65705785,0.00015869,2]
[390988034,1760273367403,-214.99613237,0.00015869,2]
[390988035,1760273367421,-500.0,0.00015869,2]
[390988036,1760273367441,-500.0,0.00015869,2]
[390988037,1760273367460,-500.0,0.00015869,2]
[390988038,1760273367479,-500.0,0.00015869,2]
[390988039,1760273367498,-574.62364352,0.00015869,2]
[390988040,1760273367519,-500.0,0.00015869,2]
[390988041,1760273367538,-500.0,0.00015869,2]
[390988042,1760273367557,-500.0,0.00015869,2]
[390988043,1760273367577,-500.0,0.00015869,2]
[390988044,1760273367596,-500.0,0.00015869,2]
[390988045,1760273367617,-500.0,0.00015869,2]
[390988046,1760273367638,-500.0,0.00015869,2]
[390988047,1760273367657,-429.7932208,0.00015869,2]
[390988048,1760273367677,-500.0,0.00015869,2]
[390988049,1760273367695,-500.0,0.00015869,2]
[390988050,1760273367715,-500.0,0.00015869,2]
[390988051,1760273367733,-500.0,0.00015869,2]
[390988052,1760273367754,-497.23636846,0.00015869,2]
[390988053,1760273368638,255.831238,0.00015068,2]
[390988054,1760273369750,5000.0,0.000157,2]
[390988055,1760273377800,5000.0,0.000157,2]
[390988056,1760273393978,5000.0,0.000157,2]
[390988057,1760273402082,5000.0,0.000157,2]
[390988058,1760273418753,5000.0,0.000157,2]
[390988060,1760273427292,5000.0,0.000157,2]
[390988064,1760273432309,-500.0,0.00015868,2]
[390988065,1760273432318,-500.0,0.00015868,2]
[390988066,1760273432328,-30.3244675,0.00015868,2]
[390988087,1760273440377,-347.0,0.00015768,2]
[390988088,1760273440387,-469.6755325,0.00015868,2]
[390988089,1760273440396,-500.0,0.00015868,2]
[390988090,1760273440404,-500.0,0.00015868,2]
[390988091,1760273440413,-500.0,0.00015868,2]
[390988092,1760273440422,-500.0,0.00015868,2]
[390988093,1760273440431,-500.0,0.00015868,2]
[390988094,1760273440441,-500.0,0.00015868,2]
[390988095,1760273440449,-500.0,0.00015868,2]
[390988096,1760273440459,-500.0,0.00015868,2]
[390988097,1760273440468,-500.0,0.00015868,2]
[390988098,1760273440477,-500.0,0.00015868,2]
[390988099,1760273440487,-380.44640365,0.00015868,2]
[390988100,1760273440496,-500.0,0.00015868,2]
[390988101,1760273440506,-500.0,0.00015868,2]
[390988102,1760273440515,-500.0,0.00015868,2]
[390988103,1760273440525,-500.0,0.00015868,2]
[390988104,1760273440534,-500.0,0.00015868,2]
[390988105,1760273440543,-500.0,0.00015868,2]
[390988106,1760273440552,-407.46236435,0.00015868,2]
[390988107,1760273440561,-500.0,0.00015868,2]
[390988108,1760273440570,-500.0,0.00015868,2]
[390988109,1760273440579,-500.0,0.00015868,2]
[390988110,1760273440589,-500.0,0.00015868,2]
[390988111,1760273440598,-500.0,0.00015868,2]
[390988112,1760273440616,-500.0,0.00015868,2]
[390988113,1760273440626,-500.0,0.00015868,2]
[390988114,1760273440635,-500.0,0.00015868,2]
[390988115,1760273440644,-500.0,0.00015868,2]
[390988116,1760273440653,-500.0,0.00015868,2]
[390988117,1760273440663,-500.0,0.00015868,2]
[390988118,1760273440672,-500.0,0.00015868,2]
[390988119,1760273440680,-500.0,0.00015868,2]
[390988120,1760273440691,-500.0,0.00015868,2]
[390988121,1760273440858,-500.0,0.00015868,2]
[390988122,1760273440872,-500.0,0.00015868,2]
[390988123,1760273440881,-500.0,0.00015868,2]
[390988124,1760273440891,-500.0,0.00015868,2]
[390988125,1760273440900,-500.0,0.00015868,2]
[390988126,1760273440909,-277.05363134,0.00015868,2]
[390988127,1760273440918,-500.0,0.00015868,2]
[390988128,1760273440926,-500.0,0.00015868,2]
[390988129,1760273440937,-500.0,0.00015868,2]
[390988130,1760273440946,-500.0,0.00015868,2]
[390988131,1760273440955,-212.97294689,0.00015868,2]
[390988132,1760273441094,-3e-08,0.00015868,2]
[390988134,1760273443568,5000.0,0.000157,2]
[390988135,1760273451538,5000.0,0.000157,2]
[390988136,1760273467182,5000.0,0.000157,2]
[390988137,1760273475302,5000.0,0.000157,2]
[390988138,1760273486960,441.5442235,0.00014871,2]
[390988139,1760273490853,5000.0,0.000157,2]
[390988140,1760273498852,2626.2308409,0.000157,2]
[390988142,1760273512087,500.0,0.00030264,60]
[390988143,1760273512321,500.0,0.00030264,60]
[390988144,1760273512568,500.0,0.00030264,60]
[390988145,1760273512832,500.0,0.00030264,60]
[390988146,1760273513071,500.0,0.00030264,60]
[390988147,1760273513393,500.0,0.00030264,60]
[390988148,1760273513587,500.0,0.00030264,60]
[390988149,1760273513877,199.0,0.00030264,60]
[390988150,1760273514130,5000.0,0.000157,2]
[390988151,1760273515708,500.0,0.00030264,60]
[390988152,1760273515982,500.0,0.00030264,60]
[390988153,1760273516258,354.23021709,0.00030264,60]
[390988155,1760273520847,500.0,0.00030264,60]
[390988156,1760273522739,500.0,0.00030264,60]
[390988157,1760273526018,500.0,0.00030264,60]
[390988158,1760273526275,180.61,0.00030264,60]
[390988159,1760273529845,500.0,0.00030264,60]
[390988160,1760273530090,500.0,0.00030264,60]
[390988161,1760273530329,500.0,0.00030264,60]
[390988162,1760273530592,345.07,0.00030264,60]
[390988164,1760273535710,644.11,0.00030264,60]
[390988165,1760273536884,5000.0,0.00017,10]
[390988166,1760273537932,500.0,0.00030264,60]
[390988167,1760273538163,447.3,0.00030264,60]
[390988181,1760273542990,500.0,0.00030264,60]
[390988266,1760273551947,500.58614903,0.00030264,60]
[390988267,1760273552448,500.0,0.00030264,60]
[390988268,1760273552684,500.0,0.00030264,60]
[390988269,1760273552962,500.0,0.00030264,60]
[390988270,1760273553238,499.92,0.00030264,60]
[390988272,1760273556363,500.0,0.00030264,60]
[390988274,1760273557665,500.0,0.00030264,60]
[390988275,1760273559425,500.0,0.00030264,60]